bitfinex/quotes_SOLUSD_20241013
["timestamp","ask_amount","ask_price","bid_price","bid_amount"]
[1728834282741,16.3024465,145.18,145.05,17.99211507]
[1728834282936,1.72275663,145.17,145.05,17.99211507]
[1728834283640,6.8896,145.15,145.05,17.99211507]
[1728834284052,16.3024465,145.18,145.05,17.99211507]
[1728834284220,6.889,145.16,145.05,17.99211507]
[1728834284538,1.72275578,145.15,145.06,23.776884]
[1728834285938,6.8891,145.16,145.06,23.776884]
[1728834286142,1.72275237,145.17,145.06,23.776884]
[1728834286328,6.8894,145.15,145.06,23.776884]
[1728834286937,16.3024465,145.18,145.06,23.776884]
[1728834286938,6.8885,145.17,145.08,23.776884]
[1728834287243,1.72266095,145.16,145.08,23.776884]
[1728834288742,1.72266095,145.16,145.09,19.36746217]
[1728834288949,1.7225443,145.17,145.09,19.36746217]
[1728834289449,1.7225443,145.17,145.1,23.776884]
[1728834291045,16.3024465,145.18,145.13,17.99211507]
[1728834293730,0.3336465,145.18,145.15,17.99211507]
[1728834293935,0.3336465,145.18,145.16,1.37377322]
[1728834294136,0.3336465,145.18,145.17,41.76899907]
[1728834296028,1.7214802,145.25,145.18,23.776884]
[1728834296232,8.6061802,145.25,145.17,41.76899907]
[1728834296551,6.8856,145.23,145.17,23.776884]
[1728834296754,1.72167579,145.22,145.17,23.776884]
[1728834297050,1.72167579,145.23,145.17,23.776884]
[1728834298446,1.72164637,145.25,145.17,23.776884]
[1728834298635,8.60634637,145.25,145.17,23.776884]
[1728834299248,8.60634637,145.25,145.16,17.99211507]
[1728834299249,1.72164637,145.25,145.16,17.99211507]
[1728834300269,1.72164637,145.25,145.15,23.776884]
[1728834300561,6.8857,145.23,145.14,17.99211507]
[1728834300759,1.72189506,145.22,145.14,17.99211507]
[1728834301542,1.72189506,145.22,145.15,23.776884]
[1728834301849,1.72181967,145.23,145.16,17.99211507]
[1728834302462,1.72181967,145.23,145.17,25.15017036]
[1728834303262,8.15419415,145.24,145.18,19.36517511]
[1728834303556,8.15419415,145.24,145.18,17.99211507]
[1728834303754,1.72159415,145.24,145.18,17.99211507]
[1728834303969,1.72150958,145.25,145.19,23.776884]
[1728834304147,1.72150958,145.25,145.18,17.99211507]
[1728834304349,8.60620958,145.25,145.17,23.776884]
[1728834304962,6.8856,145.23,145.14,17.99211507]
[1728834305154,8.15449339,145.22,145.12,15.7905]
[1728834305364,8.15449339,145.22,145.11,24.26291507]
[1728834305365,15.3711,145.21,145.11,24.26291507]
[1728834305668,1.72207026,145.2,145.13,17.99211507]
[1728834307148,1.72207026,145.2,145.14,23.776884]
[1728834307742,17.09305197,145.21,145.15,1.37391881]
[1728834308767,6.8854,145.24,145.16,23.776884]
[1728834309263,1.72171051,145.23,145.16,23.776884]
[1728834309847,8.60731051,145.23,145.13,17.99211507]
[1728834310043,8.60731051,145.23,145.14,23.776884]
[1728834310269,8.60731051,145.23,145.15,1.37376982]
[1728834310645,1.72171051,145.23,145.15,19.36587468]
[1728834310860,8.60701522,145.24,145.15,17.99211507]
[1728834311266,1.72181522,145.24,145.17,23.776884]
[1728834311471,21.8037,145.25,145.19,17.99211507]
[1728834312176,21.8037,145.25,145.2,1.37260635]
[1728834313157,1.72136315,145.27,145.2,1.37260635]
[1728834313356,1.72136315,145.27,145.2,23.776884]
[1728834313754,1.72123532,145.28,145.2,23.776884]
[1728834314580,6.8841,145.27,145.2,23.776884]
[1728834314776,1.72127331,145.26,145.2,23.776884]
[1728834315260,8.60587331,145.26,145.17,24.11001507]
[1728834315453,1.72127331,145.26,145.18,23.776884]
[1728834316674,6.8851,145.24,145.18,23.776884]
[1728834316874,1.72154881,145.23,145.15,16.6658]
[1728834317074,1.72154881,145.23,145.16,23.776884]
[1728834317567,1.72163839,145.24,145.16,23.776884]
[1728834321469,1.72146982,145.24,145.16,41.76899907]
[1728834321773,1.7214298,145.25,145.16,41.76899907]
[1728834323674,1.72143042,145.26,145.18,17.99211507]
[1728834324073,1.72143042,145.26,145.19,23.776884]
[1728834324665,8.60482281,145.28,145.19,23.776884]
[1728834325404,1.72132281,145.28,145.2,19.36452491]
[1728834326971,8.60462281,145.28,145.19,23.776884]
[1728834332189,1.72132281,145.28,145.21,23.776884]
[1728834332392,6.8823,145.3,145.21,23.776884]
[1728834332393,1.72099576,145.29,145.21,23.776884]
[1728834332692,8.60379576,145.29,145.21,23.776884]
[1728834333404,1.72099873,145.28,145.21,23.776884]
[1728834333575,1.72099873,145.3,145.23,17.99211507]
[1728834333888,8.60359873,145.3,145.22,16.4732]
[1728834334196,16.3296,145.3,145.22,23.776884]
[1728834334491,1.72107791,145.29,145.22,23.776884]
[1728834334700,1.72082387,145.29,145.22,23.776884]
[1728834335578,0.8276983,145.32,145.24,23.776884]
[1728834335785,0.8276983,145.32,145.23,17.99211507]
[1728834336091,0.8276983,145.32,145.25,17.99211507]
[1728834336293,0.8276983,145.32,145.26,23.776884]
[1728834338081,2.5480882,145.32,145.25,23.776884]
[1728834338599,2.5480882,145.32,145.24,23.776884]
[1728834339202,9.4294882,145.32,145.24,23.776884]
[1728834342390,6.8814,145.32,145.24,23.776884]
[1728834342590,23.2105,145.33,145.24,23.776884]
[1728834343692,1.72042536,145.32,145.24,23.776884]
[1728834344385,8.60222536,145.32,145.24,23.776884]
[1728834345311,6.8818,145.32,145.25,17.99211507]
[1728834345510,8.60236054,145.31,145.24,23.776884]
[1728834347397,6.8819,145.31,145.24,23.776884]
[1728834351625,6.8824,145.3,145.24,23.776884]
[1728834355819,6.8824,145.3,145.25,11.48798603]
[1728834356594,6.8828,145.29,145.24,35.26487003]
[1728834356793,6.8828,145.29,145.24,23.776884]
[1728834357016,6.8826,145.3,145.25,11.48798603]
[1728834357420,6.8828,145.29,145.25,11.48798603]
[1728834359097,1.72057983,145.32,145.25,11.48798603]
[1728834359302,6.8824,145.3,145.26,11.48798603]
[1728834360822,6.8824,145.3,145.24,23.776884]
[1728834360823,1.72057853,145.29,145.2,16.0926]
[1728834361011,1.72083019,145.31,145.22,11.48798603]
[1728834361323,6.8833,145.28,145.23,11.48798603]
[1728834362801,6.8833,145.28,145.24,11.48798603]
[1728834365105,6.8833,145.28,145.21,23.776884]
[1728834365106,6.8833,145.28,145.23,11.48798603]
[1728834365599,6.8833,145.28,145.24,23.776884]
[1728834366229,6.8819,145.31,145.26,11.48798603]
[1728834366416,6.8819,145.31,145.27,1.37638834]
[1728834366720,6.8819,145.31,145.26,11.48798603]
[1728834367728,16.3296,145.33,145.26,11.48798603]
[1728834368021,6.8828,145.29,145.24,35.26487003]
[1728834369496,6.8842,145.26,145.22,11.48798603]
[1728834369921,6.8842,145.26,145.21,11.48798603]
[1728834370527,6.8847,145.25,145.2,11.48798603]
[1728834370907,6.8847,145.25,145.21,11.48798603]
[1728834371598,6.8847,145.25,145.22,11.48798603]
[1728834372329,6.8847,145.25,145.21,11.48798603]
[1728834373629,6.8843,145.26,145.21,11.48798603]
[1728834373826,6.8838,145.27,145.23,11.48798603]
[1728834374127,6.8838,145.27,145.17,23.776884]
[1728834374128,6.8838,145.27,145.24,11.48798603]
[1728834374530,22.7698,145.28,145.25,1.3767858]
[1728834374744,15.8865,145.28,145.25,12.86477183]
[1728834374919,6.379,145.29,145.26,11.48798603]
[1728834374920,6.8828,145.29,145.26,11.48798603]
[1728834375639,6.8828,145.29,145.25,11.48798603]
[1728834378051,6.8834,145.28,145.25,11.48798603]
[1728834378635,6.8834,145.28,145.26,11.48798603]
[1728834380025,6.8834,145.28,145.24,11.48798603]
[1728834380223,6.8846,145.25,145.22,11.48798603]
[1728834380528,17.2067,145.3,145.22,11.48798603]
[1728834380529,6.8843,145.26,145.22,11.48798603]
[1728834382523,6.8838,145.27,145.23,12.86486858]
[1728834382819,6.8838,145.27,145.17,15.2047]
[1728834382820,6.8838,145.27,145.24,11.48798603]
[1728834383041,6.8838,145.27,145.23,11.48798603]
[1728834383542,6.8833,145.28,145.23,11.48798603]
[1728834383754,6.8833,145.28,145.24,11.48798603]
[1728834386160,6.8833,145.28,145.23,11.48798603]
[1728834386528,1.72086782,145.3,145.24,1.37669579]
[1728834386828,6.8838,145.27,145.23,11.48798603]
[1728834388958,6.8838,145.27,145.22,11.48798603]
[1728834390039,6.8838,145.27,145.23,11.48798603]
[1728834390679,1.72086782,145.3,145.24,1.37684183]
[1728834390970,6.883,145.29,145.24,11.48798603]
[1728834391177,1.72086782,145.3,145.24,11.48798603]
[1728834391352,6.8829,145.29,145.24,11.48798603]
[1728834391545,8.6037811,145.29,145.24,11.48798603]
[1728834392473,6.8829,145.29,145.24,11.48798603]
[1728834392764,6.8823,145.3,145.27,11.48798603]
[1728834393006,6.8823,145.3,145.26,11.48798603]
[1728834394467,6.8823,145.3,145.25,11.48798603]
[1728834394667,1.72061575,145.29,145.23,15.3081]
[1728834394841,6.8832,145.28,145.24,12.86469259]
[1728834395041,6.8829,145.29,145.24,12.86469259]
[1728834395243,6.8829,145.29,145.25,11.48798603]
[1728834395878,6.8824,145.3,145.26,11.48798603]
[1728834396352,6.8824,145.3,145.26,12.86455078]
[1728834396654,6.8824,145.3,145.26,11.48798603]
[1728834397783,6.8819,145.31,145.27,11.48798603]
[1728834398077,6.8814,145.32,145.29,11.48798603]
[1728834398280,23.77260594,145.36,145.3,1.37627625]
[1728834399366,6.8814,145.32,145.3,1.37627625]
[1728834399565,6.8814,145.32,145.3,1.37627729]
[1728834399964,6.8806,145.34,145.3,11.48798603]
[1728834400169,6.8806,145.34,145.31,11.48798603]
[1728834400369,6.8806,145.34,145.3,11.48798603]
[1728834401970,6.881,145.33,145.3,11.48798603]
[1728834402360,6.8805,145.34,145.3,11.48798603]
[1728834403264,6.88,145.35,145.31,11.48798603]
[1728834403778,23.77195326,145.36,145.31,11.48798603]
[1728834403779,6.8805,145.34,145.31,11.48798603]
[1728834405482,6.8805,145.34,145.32,11.48798603]
[1728834406504,6.8805,145.34,145.31,11.48798603]
[1728834408378,6.8805,145.34,145.32,11.48798603]
[1728834409094,6.88,145.35,145.32,11.48798603]
[1728834409894,22.0519,145.36,145.32,11.48798603]
[1728834410106,6.8804,145.34,145.32,11.48798603]
[1728834410596,6.8801,145.35,145.32,11.48798603]
[1728834410767,6.8801,145.35,145.33,11.48798603]
[1728834410963,6.8801,145.35,145.32,11.48798603]
[1728834411195,6.8801,145.35,145.33,11.48798603]
[1728834411585,22.3273,145.36,145.34,11.48798603]
[1728834411783,6.8799,145.35,145.34,11.48798603]
[1728834412307,6.8786,145.38,145.34,11.48798603]
[1728834412493,6.8786,145.38,145.36,11.48798603]
[1728834413283,6.8789,145.37,145.34,11.48798603]
[1728834414907,6.8789,145.37,145.35,11.48798603]
[1728834415105,1.71960904,145.39,145.35,11.48798603]
[1728834415282,6.8785,145.38,145.36,12.86373564]
[1728834415703,23.52618701,145.4,145.36,11.48798603]
[1728834415904,22.0798,145.4,145.38,11.48798603]
[1728834416401,6.8777,145.4,145.38,11.48798603]
[1728834417201,6.8772,145.41,145.38,11.48798603]
[1728834418013,20.0,145.43,145.37,11.48798603]
[1728834418208,20.0,145.43,145.36,11.48798603]
[1728834418705,6.879,145.37,145.32,6.0155]
[1728834418918,17.192,145.42,145.35,11.48798603]
[1728834419082,17.192,145.42,145.36,11.48798603]
[1728834419083,6.8786,145.38,145.36,11.48798603]
[1728834421689,1.71966022,145.41,145.37,11.48798603]
[1728834421911,20.0,145.43,145.38,12.86355897]
[1728834422103,6.8776,145.4,145.38,12.86355897]
[1728834422284,6.8772,145.41,145.38,11.48798603]
[1728834422488,6.8772,145.41,145.4,11.48798603]
[1728834422689,6.8756,145.45,145.4,11.48798603]
[1728834422909,6.8756,145.45,145.35,15.3583]
[1728834422910,6.8756,145.45,145.44,11.48798603]
[1728834423707,6.8748,145.46,145.44,11.48798603]
[1728834424286,7.7019983,145.47,145.45,11.48798603]
[1728834424909,7.7019983,145.47,145.46,11.48798603]
[1728834425295,7.7019983,145.47,145.45,11.48798603]
[1728834425809,0.8276983,145.47,145.45,11.48798603]
[1728834427492,2.54617297,145.47,145.38,43.776884]
[1728834427700,2.54617297,145.47,145.37,6.331]
[1728834427701,6.8758,145.44,145.41,11.48798603]
[1728834428013,6.8752,145.45,145.41,11.48798603]
[1728834428217,6.8752,145.45,145.42,1.3751353]
[1728834428423,6.8752,145.45,145.43,11.48798603]
[1728834428600,6.8749,145.46,145.43,11.48798603]
[1728834428797,2.54661743,145.47,145.42,11.48798603]
[1728834429004,6.8753,145.45,145.41,11.48798603]
[1728834429302,6.8761,145.43,145.41,11.48798603]
[1728834430021,6.8761,145.43,145.37,6.331]
[1728834430022,6.8757,145.44,145.39,17.91228729]
[1728834430398,6.8762,145.43,145.39,17.91228729]
[1728834430809,1.71913755,145.42,145.35,33.27058729]
[1728834431028,6.8767,145.42,145.35,33.27058729]
[1728834432129,1.71917398,145.41,145.35,33.27058729]
[1728834432429,1.71917398,145.44,145.35,33.27058729]
[1728834432602,6.8771,145.41,145.35,33.27058729]
[1728834433727,6.8771,145.41,145.36,23.776884]
[1728834433924,1.71917398,145.44,145.36,23.776884]
[1728834434227,1.71917784,145.45,145.39,17.91228729]
[1728834434446,8.59467784,145.45,145.39,17.91228729]
[1728834435933,6.8758,145.44,145.39,17.91228729]
[1728834437644,6.8758,145.44,145.37,17.91228729]
[1728834437941,1.71918697,145.43,145.37,17.91228729]
[1728834438140,1.719179,145.45,145.37,17.91228729]
[1728834438639,6.8781,145.39,145.35,17.91228729]
[1728834438827,6.8776,145.4,145.35,17.91228729]
[1728834439027,21.71950017,145.43,145.35,17.91228729]
[1728834439423,6.877,145.42,145.35,17.91228729]
[1728834439645,6.8772,145.41,145.35,17.91228729]
[1728834440641,6.8772,145.41,145.36,23.776884]
[1728834442140,6.8767,145.42,145.36,23.776884]
[1728834442450,6.8758,145.44,145.38,23.776884]
[1728834442635,1.71919276,145.45,145.39,17.91228729]
[1728834442937,6.8757,145.44,145.39,17.91228729]
[1728834447648,1.71902073,145.43,145.38,23.776884]
[1728834447947,6.8766,145.42,145.37,17.91228729]
[1728834448724,6.8763,145.43,145.38,23.776884]
[1728834449246,1.71930693,145.45,145.41,17.91228729]
[1728834449461,1.71930693,145.45,145.38,23.776884]
[1728834449462,7.7018983,145.47,145.43,17.91228729]
[1728834449671,8.59340397,145.46,145.41,17.91228729]
[1728834450049,6.8748,145.46,145.41,17.91228729]
[1728834453556,6.8748,145.46,145.42,1.37500218]
[1728834453859,0.8276983,145.47,145.45,11.45692502]
[1728834454165,0.8276983,145.47,145.44,11.45692502]
[1728834454166,7.7019983,145.47,145.44,11.45692502]
[1728834454761,1.71859766,145.46,145.39,20.0]
[1728834454965,6.8748,145.46,145.42,11.45692502]
[1728834455460,7.7019983,145.47,145.44,11.45692502]
[1728834455661,7.7019983,145.47,145.43,11.45692502]
[1728834455961,7.7019983,145.47,145.44,11.45692502]
[1728834456263,7.7019983,145.47,145.43,11.45692502]
[1728834458952,7.7019983,145.47,145.44,11.45692502]
[1728834460588,6.8757,145.44,145.42,11.45692502]
[1728834461275,6.8753,145.45,145.42,11.45692502]
[1728834461444,6.8753,145.45,145.41,11.45692502]
[1728834462269,6.8753,145.45,145.42,11.45692502]
[1728834462568,6.876,145.44,145.41,11.45692502]
[1728834462868,6.8765,145.43,145.4,11.45692502]
[1728834463169,6.8757,145.44,145.41,11.45692502]
[1728834463352,6.8762,145.43,145.41,11.45692502]
[1728834463965,6.8757,145.44,145.41,11.45692502]
[1728834464262,6.8757,145.44,145.42,1.37519653]
[1728834464480,6.8757,145.44,145.41,11.45692502]
[1728834465275,2.54641063,145.47,145.41,11.45692502]
[1728834465477,2.54641063,145.47,145.36,6.3542]
[1728834465478,6.8765,145.43,145.4,11.45692502]
[1728834465680,6.8758,145.44,145.41,11.45692502]
[1728834466051,6.8747,145.46,145.43,11.45692502]
[1728834466247,2.54658843,145.47,145.37,20.0]
[1728834466248,6.8755,145.45,145.37,20.0]
[1728834466476,6.8755,145.45,145.42,11.45692502]
[1728834468283,0.8276983,145.47,145.43,11.45692502]
[1728834468461,0.8276983,145.47,145.45,11.45692502]
[1728834469353,0.8276983,145.47,145.39,15.637]
[1728834469354,0.8276983,145.47,145.46,11.45692502]
[1728834469776,6.9058983,145.47,145.33,20.0]
[1728834469955,6.9058983,145.47,145.39,11.45692502]
[1728834469956,6.876,145.44,145.39,11.45692502]
[1728834471480,6.8753,145.45,145.41,11.45692502]
[1728834471981,6.8753,145.45,145.39,17.91080273]
[1728834472164,6.8753,145.45,145.4,25.15198067]
[1728834472358,6.8753,145.45,145.4,23.776884]
[1728834472579,6.8758,145.44,145.4,23.776884]
[1728834473155,8.62478718,145.47,145.41,1.3751111]
[1728834473455,0.8276983,145.47,145.42,23.776884]
[1728834475757,0.8276983,145.47,145.4,43.776884]
[1728834475758,6.8748,145.46,145.4,43.776884]
[1728834475960,6.8748,145.46,145.4,61.68768673]
[1728834479288,6.8753,145.45,145.4,41.68768673]
[1728834481066,6.8756,145.44,145.4,17.91080273]
[1728834481259,6.3756,145.44,145.4,17.91080273]
[1728834481460,6.8748,145.46,145.41,1.37519765]
[1728834481784,0.8276983,145.47,145.42,17.91080273]
[1728834482562,0.8276983,145.47,145.43,23.776884]
[1728834483887,0.8276983,145.47,145.44,1.37482479]
[1728834484069,0.8276983,145.47,145.44,19.28562752]
[1728834485477,0.8276983,145.47,145.44,17.91080273]
[1728834486280,0.8276983,145.47,145.43,23.776884]
[1728834486281,0.8276983,145.47,145.46,41.68768673]
[1728834487289,0.8276983,145.47,145.46,61.68768673]
[1728834489786,24.85781285,145.54,145.46,79.59848946]
[1728834489787,16.2688,145.54,145.46,79.59848946]
[1728834489985,16.2688,145.54,145.5,17.91080273]
[1728834491071,24.85780779,145.54,145.48,17.91080273]
[1728834491397,16.2688,145.54,145.46,17.91080273]
[1728834491571,16.2688,145.54,145.5,17.91080273]
[1728834492584,16.2688,145.54,145.51,1.37418096]
[1728834493793,1.71772646,145.64,145.53,11.44224972]
[1728834493794,16.3802,145.6,145.53,11.44224972]
[1728834493982,6.87,145.56,145.53,11.44224972]
[1728834494290,6.87,145.56,145.52,11.44224972]
[1728834494490,6.87,145.56,145.53,11.44224972]
[1728834494693,6.87,145.56,145.52,11.44224972]
[1728834495395,6.8706,145.55,145.51,11.44224972]
[1728834495981,6.8706,145.55,145.52,11.44224972]
[1728834496301,6.8706,145.55,145.53,11.44224972]
[1728834496491,6.8701,145.56,145.53,11.44224972]
[1728834496682,6.8694,145.58,145.54,11.44224972]
[1728834496880,8.58623808,145.59,145.55,11.44224972]
[1728834500379,6.8686,145.59,145.55,11.44224972]
[1728834500579,6.8686,145.59,145.56,11.44224972]
[1728834501669,6.8686,145.59,145.49,30.423084]
[1728834501670,23.2484,145.6,145.57,11.44224972]
[1728834503188,24.96547626,145.6,145.56,11.44224972]
[1728834503396,23.2484,145.6,145.56,11.44224972]
[1728834503990,23.2484,145.6,145.57,11.44224972]
[1728834504904,7.6953983,145.61,145.57,11.44224972]
[1728834505493,7.6953983,145.61,145.58,11.44224972]
[1728834506503,7.6953983,145.61,145.6,35.21913372]
[1728834506504,0.8276983,145.61,145.6,35.21913372]
[1728834507185,0.8276983,145.61,145.6,11.44224972]
[1728834508988,0.8276983,145.61,145.6,35.21913372]
[1728834511406,6.8643,145.68,145.61,43.776884]
[1728834511586,6.8643,145.68,145.66,11.44224972]
[1728834512209,6.8643,145.68,145.61,43.776884]
[1728834512418,6.8643,145.68,145.66,11.44224972]
[1728834513215,15.3912,145.7,145.67,11.44224972]
[1728834513394,15.3912,145.7,145.64,11.44224972]
[1728834513395,6.8648,145.67,145.64,11.44224972]
[1728834513712,6.8648,145.67,145.61,23.776884]
[1728834514015,1.71637321,145.66,145.6,47.85413778]
[1728834514312,21.7967,145.7,145.6,47.85413778]
[1728834514313,1.71647514,145.69,145.6,17.85413778]
[1728834514495,6.8654,145.66,145.6,17.85413778]
[1728834514898,6.8654,145.66,145.61,1.37318]
[1728834515526,6.8654,145.66,145.6,17.85413778]
[1728834515818,6.8654,145.66,145.62,23.776884]
[1728834516017,6.8654,145.66,145.61,23.776884]
[1728834516717,6.8654,145.66,145.62,19.2272446]
[1728834516894,8.58037514,145.69,145.64,17.85413778]
[1728834517098,6.8639,145.69,145.65,1.37287293]
[1728834517320,21.7967,145.7,145.65,23.776884]
[1728834517507,21.7967,145.7,145.66,19.22687058]
[1728834517820,21.7967,145.7,145.66,17.85413778]
[1728834518289,15.3912,145.7,145.66,17.85413778]
[1728834518493,6.8625,145.72,145.67,1.37271161]
[1728834518716,6.8625,145.72,145.66,17.85413778]
[1728834518895,6.8625,145.72,145.67,23.776884]
[1728834519217,16.90220571,145.73,145.67,23.776884]
[1728834519218,15.1864,145.73,145.68,17.85413778]
[1728834520398,22.0484,145.73,145.68,17.85413778]
[1728834520994,15.1864,145.73,145.69,23.776884]
[1728834521218,6.033,145.74,145.7,17.85413778]
[1728834522017,8.57656947,145.75,145.7,17.85413778]
[1728834523107,8.57656947,145.75,145.71,1.37237461]
[1728834523520,6.8611,145.75,145.71,1.37237461]
[1728834523719,1.71541231,145.74,145.7,17.85413778]
[1728834523905,1.71560889,145.75,145.68,17.85413778]
[1728834524218,8.57710889,145.75,145.69,1.37255502]
[1728834524640,6.8619,145.74,145.69,23.776884]
[1728834524815,6.8619,145.74,145.7,1.37243402]
[1728834525016,6.8619,145.74,145.69,23.776884]
[1728834525746,1.71560889,145.75,145.69,23.776884]
[1728834526121,6.8618,145.74,145.69,23.776884]
[1728834526924,6.8618,145.74,145.61,22.2451]
[1728834526925,6.863,145.71,145.61,22.2451]
[1728834527125,1.71554749,145.73,145.66,17.85413778]
[1728834527325,1.71554749,145.73,145.67,1.37265125]
[1728834527326,6.8626,145.72,145.67,1.37265125]
[1728834527838,6.8626,145.72,145.66,17.85413778]
[1728834528341,6.8626,145.72,145.67,1.37265511]
[1728834528516,6.8621,145.73,145.67,1.37265511]
[1728834528914,6.8621,145.73,145.68,23.776884]
[1728834529326,6.8621,145.73,145.67,23.776884]
[1728834530038,6.8621,145.73,145.68,17.85413778]
[1728834530237,6.8619,145.74,145.69,23.776884]
[1728834530444,6.8622,145.73,145.69,23.776884]
[1728834530639,6.8622,145.73,145.68,17.85413778]
[1728834531732,8.57823266,145.72,145.67,23.776884]
[1728834532252,6.8625,145.72,145.67,23.776884]
[1728834534444,8.57882116,145.71,145.67,23.776884]
[1728834535023,6.863,145.71,145.67,23.776884]
[1728834536025,6.863,145.71,145.68,11.41986433]
[1728834537359,6.8626,145.72,145.68,11.41986433]
[1728834537526,6.8626,145.72,145.69,11.41986433]
[1728834538242,6.8629,145.71,145.69,11.41986433]
[1728834538440,6.8625,145.72,145.69,11.41986433]
[1728834539757,8.57774712,145.74,145.7,11.41986433]
[1728834540049,6.8619,145.74,145.7,11.41986433]
[1728834540226,1.71560855,145.75,145.63,20.0]
[1728834540427,16.0140983,145.76,145.7,11.41986433]
[1728834540629,1.71562133,145.75,145.71,11.41986433]
[1728834540842,16.0140983,145.76,145.63,20.0]
[1728834540843,16.0140983,145.76,145.72,11.41986433]
[1728834541156,16.0140983,145.76,145.74,11.41986433]
[1728834542130,16.0140983,145.76,145.67,15.0387]
[1728834542131,0.8276983,145.76,145.67,15.0387]
[1728834542329,0.8276983,145.76,145.75,11.41986433]
[1728834542552,0.8276983,145.76,145.74,11.41986433]
[1728834542735,0.8276983,145.76,145.75,11.41986433]
[1728834545955,0.8276983,145.76,145.68,48.61070134]
[1728834546138,0.8276983,145.76,145.75,11.41986433]
[1728834546452,0.8276983,145.76,145.75,35.19674833]
[1728834546959,0.8276983,145.76,145.75,11.41986433]
[1728834547160,0.8276983,145.76,145.75,35.19674833]
[1728834548439,15.531,145.81,145.79,11.41986433]
[1728834548757,22.3896,145.81,145.8,11.41986433]
[1728834550349,22.3896,145.81,145.79,11.41986433]
[1728834551063,22.3896,145.81,145.78,11.41986433]
[1728834551266,22.3896,145.81,145.79,11.41986433]
[1728834551749,15.531,145.81,145.75,23.776884]
[1728834551944,6.8591,145.79,145.77,11.41986433]
[1728834552339,6.859,145.8,145.78,11.41986433]
[1728834552558,6.859,145.8,145.79,11.41986433]
[1728834552940,6.859,145.8,145.78,11.41986433]
[1728834554365,6.859,145.8,145.77,11.41986433]
[1728834554862,6.859,145.8,145.78,11.41986433]
[1728834556770,6.859,145.8,145.79,11.41986433]
[1728834557763,6.859,145.8,145.77,11.41986433]
[1728834558460,6.8593,145.79,145.77,11.41986433]
[1728834563748,6.8596,145.78,145.75,11.41986433]
[1728834564053,6.8596,145.78,145.76,1.37199524]
[1728834564548,6.8596,145.78,145.75,11.41986433]
[1728834564752,6.8596,145.78,145.76,11.41986433]
[1728834566168,6.8592,145.79,145.76,11.41986433]
[1728834570386,6.8592,145.79,145.77,1.37185813]
[1728834571277,17.24581791,145.81,145.77,12.79172246]
[1728834571278,6.8588,145.8,145.77,12.79172246]
[1728834571460,6.8592,145.79,145.77,11.41986433]
[1728834571663,6.8592,145.79,145.72,15.0387]
[1728834571664,6.8592,145.79,145.76,11.41986433]
[1728834572375,6.8588,145.8,145.77,1.37186012]
[1728834573651,6.1485,145.82,145.76,11.41986433]
[1728834574578,6.8583,145.81,145.76,11.41986433]
[1728834574755,6.8583,145.81,145.77,25.14861337]
[1728834575377,6.8579,145.82,145.79,11.41986433]
[1728834575570,6.8579,145.82,145.79,12.7915196]
[1728834576564,6.8579,145.82,145.8,1.3715685]
[1728834576878,6.8573,145.83,145.8,1.3715685]
[1728834578467,6.8573,145.83,145.8,12.79143283]
[1728834578677,6.8573,145.83,145.8,11.41986433]
[1728834579058,6.8577,145.82,145.79,11.41986433]
[1728834579567,6.8583,145.81,145.77,35.19674833]
[1728834579775,6.8581,145.82,145.78,1.37166297]
[1728834579959,6.8581,145.82,145.78,12.7915273]
[1728834580660,6.8587,145.8,145.78,1.37166297]
[1728834580878,6.8583,145.81,145.77,11.41986433]
[1728834581390,6.8583,145.81,145.78,1.3717208]
[1728834582277,1.714651,145.83,145.78,1.3717208]
[1728834582471,6.8587,145.8,145.78,1.3717208]
[1728834583287,6.8587,145.8,145.78,12.79158513]
[1728834584970,6.8587,145.8,145.78,11.41986433]
[1728834588488,6.8587,145.8,145.77,11.41986433]
[1728834588686,6.8583,145.81,145.78,11.41986433]
[1728834588960,1.714651,145.83,145.78,11.41986433]
[1728834589162,6.8578,145.82,145.78,11.41986433]
[1728834589385,6.8576,145.83,145.79,11.41986433]
[1728834591066,6.8581,145.82,145.79,11.41986433]
[1728834591764,8.57284273,145.81,145.77,11.41986433]
[1728834591964,6.8583,145.81,145.77,12.7916114]
[1728834592579,6.8583,145.81,145.77,11.41986433]
[1728834592981,6.8579,145.82,145.77,11.41986433]
[1728834593182,32.7295,145.85,145.77,11.41986433]
[1728834593183,8.5732452,145.81,145.77,11.41986433]
[1728834593566,8.5732452,145.81,145.73,6.5663]